bitfinex/quotes_BTCUSD_20250123
["timestamp","ask_amount","ask_price","bid_price","bid_amount"]
[1737652895340,0.0001426,104960.0,104950.0,0.286837]
[1737652896885,0.0001426,104960.0,104950.0,0.001]
[1737652897040,0.0001426,104960.0,104950.0,0.096283]
[1737652898425,0.19276389,104960.0,104950.0,0.001]
[1737652898612,0.23986389,104960.0,104950.0,0.096283]
[1737652898811,0.05264535,104960.0,104950.0,0.096283]
[1737652899014,0.0472426,104960.0,104950.0,0.096283]
[1737652899223,0.0001426,104960.0,104950.0,0.096283]
[1737652899416,0.0001426,104960.0,104950.0,0.19363029]
[1737652899807,0.0001426,104960.0,104950.0,0.35822754]
[1737652900009,0.0001426,104960.0,104950.0,0.40822754]
[1737652900209,0.0001426,104960.0,104950.0,0.43776404]
[1737652900440,0.00540275,104990.0,104980.0,0.095256]
[1737652901377,0.1272,105010.0,105000.0,0.095238]
[1737652901610,0.22469655,105010.0,105000.0,0.095238]
[1737652902038,0.13275201,105010.0,105000.0,0.095238]
[1737652902503,0.12734926,105010.0,105000.0,0.095238]
[1737652902706,0.13034926,105010.0,105000.0,0.095238]
[1737652902920,0.05665201,105010.0,105000.0,0.095238]
[1737652903933,0.00540275,105000.0,104990.0,0.285717]
[1737652905104,0.70315655,105010.0,104990.0,0.47621]
[1737652905747,0.70315655,105010.0,104990.0,0.47721]
[1737652906159,0.70315655,105010.0,104990.0,0.28574]
[1737652906160,0.00540275,105000.0,104990.0,0.28574]
[1737652906388,0.22699655,105010.0,105000.0,0.095238]
[1737652906800,0.05265201,105010.0,105000.0,0.095238]
[1737652908600,0.04724926,105010.0,105000.0,0.095238]
[1737652908803,0.14247826,105010.0,105000.0,0.095238]
[1737652909029,0.14459655,105010.0,105000.0,0.095238]
[1737652910756,0.1499993,105010.0,105000.0,0.095238]
[1737652911187,0.14459655,105010.0,105000.0,0.095238]
[1737652911618,0.05265201,105010.0,105000.0,0.095238]
[1737652911824,0.00555201,105010.0,105000.0,0.095238]
[1737652912017,0.00014926,105010.0,105000.0,0.095238]
[1737652912228,0.00555201,105010.0,105000.0,0.095238]
[1737652914581,0.00540275,105000.0,104990.0,0.00029925]
[1737652914784,0.05090275,105000.0,104990.0,0.09554625]
[1737652915851,0.140738,105000.0,104990.0,0.00029925]
[1737652916281,0.140738,105000.0,104990.0,0.00129925]
[1737652917130,0.0455,105000.0,104990.0,0.09654625]
[1737652917330,0.23808529,105000.0,104990.0,0.00129925]
[1737652921434,0.14284729,105000.0,104990.0,0.00129925]
[1737652921659,0.14284729,105000.0,104990.0,0.09654625]
[1737652922323,0.14284729,105000.0,104990.0,0.00129925]
[1737652922539,0.14284729,105000.0,104990.0,0.09654625]
[1737652923201,0.23808529,105000.0,104990.0,0.00129925]
[1737652923435,0.14284729,105000.0,104990.0,0.09654625]
[1737652924104,0.23808529,105000.0,104990.0,0.00129925]
[1737652926118,0.66287787,105000.0,104990.0,0.00129925]
[1737652926264,0.89465858,105000.0,104990.0,0.00129925]
[1737652926444,0.00540275,104950.0,104940.0,0.00029946]
[1737652926689,0.00540275,104950.0,104940.0,0.12521009]
[1737652926895,0.00540275,104950.0,104940.0,0.09559146]
[1737652927366,0.19263029,104950.0,104940.0,0.00029946]
[1737652927595,0.00540275,104950.0,104940.0,0.00029946]
[1737652927869,0.12890275,104960.0,104950.0,0.095283]
[1737652930588,0.50668129,104960.0,104940.0,0.37117624]
[1737652930827,0.50668129,104960.0,104950.0,0.001]
[1737652931071,0.68648454,104960.0,104950.0,0.001]
[1737652931349,0.598083,104950.0,104940.0,0.08530524]
[1737652931640,1.04753354,104950.0,104940.0,0.08530524]
[1737652931907,1.12488083,104950.0,104940.0,0.09159216]
[1737652932172,1.02753354,104950.0,104940.0,0.09159216]
[1737652932647,1.02753354,104950.0,104940.0,0.08530524]
[1737652932929,1.04753354,104950.0,104940.0,0.09159432]
[1737652933148,0.99753354,104950.0,104940.0,0.0537621]
[1737652933367,0.99753354,104950.0,104920.0,0.0001425]
[1737652933368,0.421201,104930.0,104920.0,0.0001425]
[1737652933568,0.67535154,104930.0,104920.0,0.0001425]
[1737652933784,0.46854829,104930.0,104920.0,0.0001425]
[1737652934022,0.1259,104930.0,104920.0,0.0954525]
[1737652934238,0.23944829,104930.0,104920.0,0.0001425]
[1737652934645,0.14414729,104930.0,104920.0,0.0954525]
[1737652934845,0.23944829,104930.0,104920.0,0.0954525]
[1737652934982,0.14414729,104930.0,104920.0,0.0954525]
[1737652935184,0.05220275,104930.0,104920.0,0.0954525]
[1737652935421,0.39625154,104930.0,104920.0,0.0001425]
[1737652936016,0.64899883,104930.0,104920.0,0.0001425]
[1737652936215,0.79899883,104930.0,104920.0,0.0001425]
[1737652936421,0.74899883,104930.0,104920.0,0.0001425]
[1737652936620,0.90580208,104930.0,104920.0,0.0001425]
[1737652936819,0.218828,104900.0,104890.0,0.08553714]
[1737652937028,0.47297854,104900.0,104890.0,0.08553714]
[1737652937847,0.31617529,104900.0,104890.0,0.00029883]
[1737652938051,0.22084729,104900.0,104890.0,0.09613395]
[1737652938648,0.31617529,104900.0,104890.0,0.00079695]
[1737652938861,0.47297854,104900.0,104890.0,0.00179695]
[1737652939066,0.50154439,104900.0,104890.0,0.00179695]
[1737652939268,0.31617529,104900.0,104890.0,0.09713395]
[1737652939652,0.14384729,104900.0,104890.0,0.09713395]
[1737652939855,1.686547,104920.0,104900.0,0.190645]
[1737652940060,0.00540275,104900.0,104890.0,0.38312795]
[1737652940310,0.19266629,104910.0,104890.0,0.38312795]
[1737652940311,0.38332129,104910.0,104890.0,0.28779095]
[1737652940508,0.54012454,104910.0,104900.0,0.095328]
[1737652940711,0.38332129,104910.0,104900.0,0.095328]
[1737652941270,0.19267329,104910.0,104890.0,0.47845595]
[1737652941423,0.38331629,104910.0,104890.0,0.47845495]
[1737652941624,0.38331629,104910.0,104890.0,0.09612595]
[1737652941625,0.095328,104900.0,104890.0,0.09612595]
[1737652942014,0.87811883,104910.0,104890.0,0.28679795]
[1737652942218,0.38331729,104910.0,104890.0,0.47746095]
[1737652942619,0.57396529,104910.0,104890.0,0.47745395]
[1737652942821,0.38331629,104910.0,104890.0,0.28678895]
[1737652943051,0.095328,104900.0,104890.0,0.00179695]
[1737652943264,0.69817854,104900.0,104890.0,0.00179695]
[1737652943467,0.72753178,104900.0,104890.0,0.00179695]
[1737652943919,0.49137529,104900.0,104890.0,0.00179695]
[1737652944132,0.22304729,104900.0,104890.0,0.09713395]
[1737652944332,0.56068786,104920.0,104910.0,0.095319]
[1737652944536,0.56272415,104920.0,104910.0,0.095319]
[1737652944799,0.00540275,104910.0,104900.0,0.190641]
[1737652944997,0.10073075,104900.0,104890.0,0.28779195]
[1737652945205,0.00540275,104900.0,104890.0,0.28779195]
[1737652945417,0.00540275,104900.0,104890.0,0.28679195]
[1737652945619,0.19807504,104910.0,104900.0,0.095328]
[1737652945823,0.46937686,104920.0,104910.0,0.095319]
[1737652946046,0.00540275,104900.0,104890.0,0.28679095]
[1737652946297,0.09734729,104900.0,104890.0,0.09712795]
[1737652946498,0.10275004,104900.0,104890.0,0.09712795]
[1737652946906,0.19267529,104900.0,104890.0,0.00179695]
[1737652947320,0.095328,104900.0,104890.0,0.09713395]
[1737652947530,0.97408725,104910.0,104890.0,0.28680595]
[1737652947738,0.53332429,104910.0,104900.0,0.001]
[1737652948156,0.09734729,104910.0,104900.0,0.095328]
[1737652948368,0.00540275,104910.0,104900.0,0.095328]
[1737652948573,0.00540275,104910.0,104900.0,0.285969]
[1737652949198,0.00540275,104900.0,104890.0,0.19145695]
[1737652949400,0.00540275,104900.0,104890.0,0.28678795]
[1737652949608,0.10073075,104900.0,104890.0,0.28678795]
[1737652949815,0.10073075,104900.0,104890.0,0.00079695]
[1737652950224,0.00540275,104900.0,104890.0,0.09613395]
[1737652950416,0.19267529,104900.0,104890.0,0.28680595]
[1737652950698,0.19267529,104900.0,104890.0,0.00079695]
[1737652950699,0.69332583,104900.0,104890.0,0.00079695]
[1737652951103,0.69332583,104900.0,104890.0,0.00179695]
[1737652951319,0.71632583,104900.0,104890.0,0.00179695]
[1737652952670,0.61897854,104900.0,104890.0,0.00179695]
[1737652952871,0.46217529,104900.0,104890.0,0.00179695]
[1737652953075,0.38917529,104900.0,104890.0,0.00179695]
[1737652953277,0.38917529,104900.0,104890.0,0.09713395]
[1737652953908,0.14925004,104900.0,104890.0,0.09713395]
[1737652954101,0.14384729,104900.0,104890.0,0.09713395]
[1737652954688,0.00540275,104900.0,104890.0,0.09713395]
[1737652954894,0.18655261,104910.0,104900.0,0.095328]
[1737652955090,0.77769825,104920.0,104910.0,0.095319]
[1737652955091,0.05440275,104920.0,104910.0,0.095319]
[1737652955326,0.00540275,104910.0,104900.0,0.285962]
[1737652956702,0.00540275,104920.0,104910.0,0.190639]
[1737652956934,0.00570221,104930.0,104920.0,0.09531]
[1737652957621,0.349751,104930.0,104920.0,0.09531]
[1737652957894,0.00540275,104920.0,104910.0,0.285935]
[1737652958302,0.00540275,104910.0,104900.0,0.285966]
[1737652958771,0.00540275,104900.0,104890.0,0.19145995]
[1737652959005,0.095328,104900.0,104890.0,0.09612595]
[1737652959268,0.19267529,104900.0,104890.0,0.09612595]
[1737652959440,0.09734729,104900.0,104890.0,0.09612595]
[1737652959640,0.00540275,104900.0,104890.0,0.09612595]
[1737652960229,0.00540275,104900.0,104890.0,0.1256945]
[1737652960674,0.00540275,104900.0,104890.0,0.09612595]
[1737652960899,0.57247854,104900.0,104890.0,0.00079695]
[1737652961135,0.66982583,104900.0,104890.0,0.00079695]
[1737652961931,0.72082583,104900.0,104890.0,0.00079695]
[1737652962131,0.76992583,104900.0,104890.0,0.00079695]
[1737652962333,1.69222583,104900.0,104890.0,0.00079695]
[1737652962780,0.173,104890.0,104880.0,0.00029883]
[1737652962953,0.90443808,104890.0,104880.0,0.00044824]
[1737652963900,0.90443808,104890.0,104880.0,2.4e-07]
[1737652964458,0.74963483,104890.0,104880.0,2.4e-07]
[1737652964663,0.90643808,104890.0,104880.0,2.4e-07]
[1737652964924,0.90007043,104890.0,104880.0,2.4e-07]
[1737652965685,0.66591989,104890.0,104880.0,2.4e-07]
[1737652966520,0.64591989,104890.0,104880.0,2.4e-07]
[1737652968191,0.65572479,104890.0,104880.0,2.4e-07]
[1737652968629,0.65572479,104890.0,104860.0,0.0001425]
[1737652968630,0.115356,104870.0,104860.0,0.0001425]
[1737652968835,0.66960654,104870.0,104860.0,0.0001425]
[1737652969004,0.76695383,104870.0,104860.0,0.0001425]
[1737652969188,0.74695383,104870.0,104860.0,0.0001425]
[1737652971203,0.75195383,104870.0,104860.0,0.0001425]
[1737652972341,0.65460654,104870.0,104860.0,0.0001425]
[1737652972789,0.67660654,104870.0,104860.0,0.0001425]
[1737652973463,0.65660654,104870.0,104860.0,0.0001425]
[1737652973653,1.59890654,104870.0,104860.0,0.0001425]
[1737652974752,1.60828748,104870.0,104860.0,0.0001425]
[1737652974976,1.63843477,104870.0,104860.0,0.0001425]
[1737652976377,1.54108748,104870.0,104860.0,0.0001425]
[1737652976609,1.56034452,104870.0,104860.0,0.0001425]
[1737652977124,0.593374,104850.0,104840.0,0.0001423]
[1737652977356,0.84752454,104850.0,104840.0,0.0002918]
[1737652977593,0.84752454,104850.0,104840.0,0.00449618]
[1737652977797,0.94487183,104850.0,104840.0,0.00449618]
[1737652978229,0.95087183,104850.0,104840.0,0.0002918]
[1737652978656,0.90787508,104850.0,104840.0,0.0002918]
[1737652978892,0.90787508,104850.0,104840.0,0.00457729]
[1737652979098,0.90787508,104850.0,104840.0,0.0002918]
[1737652979307,0.75107183,104850.0,104840.0,0.0002918]
[1737652979739,0.75107183,104850.0,104840.0,0.00458387]
[1737652979937,0.75307183,104850.0,104840.0,0.00458387]
[1737652980393,0.76268228,104850.0,104840.0,0.00458387]
[1737652980742,0.66533499,104850.0,104840.0,0.00458387]
[1737652981384,0.68533499,104850.0,104840.0,0.00458387]
[1737652981630,0.64233499,104850.0,104840.0,0.00458387]
[1737652981833,0.40763174,104850.0,104840.0,0.00458387]
[1737652982008,0.56443499,104850.0,104840.0,0.00458387]
[1737652982224,0.41443499,104850.0,104840.0,0.00458387]
[1737652982773,0.70978228,104850.0,104840.0,0.00458387]
[1737652982904,0.45563174,104850.0,104840.0,0.00458387]
[1737652983108,0.61243499,104850.0,104840.0,0.00458387]
[1737652983547,0.60643499,104850.0,104840.0,0.00458387]
[1737652983750,0.44963174,104850.0,104840.0,0.00458387]
[1737652983955,0.45163174,104850.0,104840.0,0.00458387]
[1737652984167,0.60643499,104850.0,104840.0,0.00458387]
[1737652984336,0.55643499,104850.0,104840.0,0.00458387]
[1737652984668,0.40163174,104850.0,104840.0,0.00458387]
[1737652984918,0.55843499,104850.0,104840.0,0.00458387]
[1737652985335,0.49897903,104850.0,104840.0,0.00458387]
[1737652985542,0.70578228,104850.0,104840.0,0.00458387]
[1737652985970,0.72878228,104850.0,104840.0,0.00458387]
[1737652986590,0.63143499,104850.0,104840.0,0.00458387]
[1737652988375,0.58143499,104850.0,104840.0,0.00458387]
[1737652988549,0.42463174,104850.0,104840.0,0.00458387]
[1737652988893,0.42463174,104850.0,104840.0,0.09996687]
[1737652988894,0.35433174,104850.0,104840.0,0.09996687]
[1737652989691,0.10475004,104850.0,104840.0,0.09996687]
[1737652989894,0.00740275,104850.0,104840.0,0.09996687]
[1737652990649,0.00540275,104850.0,104840.0,0.09996687]
[1737652991060,0.00540275,104850.0,104840.0,0.10196687]
[1737652991516,0.57252454,104850.0,104840.0,0.00558387]
[1737652991717,0.68987183,104850.0,104840.0,0.00758387]
[1737652991870,0.66987183,104850.0,104840.0,0.00658387]
[1737652992072,0.49952454,104850.0,104840.0,0.0022918]
[1737652992365,0.49952454,104850.0,104840.0,0.10294848]
[1737652992476,0.54952454,104850.0,104840.0,0.00756548]
[1737652992679,0.54952454,104850.0,104840.0,0.00656548]
[1737652993095,0.55152454,104850.0,104840.0,0.00656548]
[1737652993672,0.55152454,104850.0,104840.0,0.00456548]
[1737652994083,0.55652454,104850.0,104840.0,0.00456548]
[1737652994257,0.25234729,104850.0,104840.0,0.00456548]
[1737652994469,0.25434729,104850.0,104840.0,0.09994848]
[1737652995214,0.24934729,104850.0,104840.0,0.09994848]
[1737652995351,0.24734729,104850.0,104840.0,0.10094848]
[1737652995550,0.24734729,104850.0,104840.0,0.10194848]
[1737652996009,0.06749968,104860.0,104850.0,0.095374]
[1737652996216,0.00540275,104880.0,104860.0,0.245365]
[1737652996424,0.00029946,104890.0,104880.0,0.170747]
[1737652996629,0.00029946,104890.0,104880.0,0.20040916]
[1737652997047,0.00029946,104890.0,104880.0,0.30234398]
[1737652997505,0.00029946,104890.0,104880.0,0.20499669]
[1737652997712,0.00029946,104890.0,104880.0,0.20699669]
[1737652998126,0.00029946,104890.0,104880.0,0.30434398]
[1737652998332,0.00029946,104890.0,104880.0,0.20799669]
[1737652998536,0.00570221,104890.0,104880.0,0.10293453]
[1737652999775,0.00029946,104890.0,104880.0,0.10293453]
[1737653000469,0.00029946,104890.0,104880.0,0.13249381]
[1737653000905,0.00029946,104890.0,104880.0,0.3798411]
[1737653001751,0.00029946,104890.0,104880.0,0.4594411]
[1737653003417,0.00029946,104890.0,104880.0,0.47403835]
[1737653003809,4.6e-07,104890.0,104880.0,0.49703835]
[1737653004034,4.6e-07,104890.0,104880.0,0.54703835]
[1737653004240,0.00570221,104920.0,104880.0,0.37869135]
[1737653004416,0.0058514,104920.0,104910.0,0.095319]
[1737653004763,0.09779594,104920.0,104910.0,0.00481253]
[1737653004964,0.19310594,104920.0,104910.0,0.10013153]
[1737653005171,0.16499594,104920.0,104910.0,0.10013153]
[1737653005513,0.26030594,104920.0,104910.0,0.00481253]
[1737653005712,0.26030594,104920.0,104910.0,0.10013153]
[1737653006754,0.16499594,104920.0,104910.0,0.10013153]
[1737653007154,0.26030594,104920.0,104910.0,0.10013153]
[1737653007421,0.26030594,104920.0,104880.0,0.36889463]
[1737653007582,0.361447,104880.0,104870.0,0.0846387]
[1737653007780,0.63859754,104880.0,104870.0,0.0846387]
[1737653007985,0.79554483,104880.0,104870.0,0.0846387]
[1737653008219,0.90234808,104880.0,104870.0,0.0846387]
[1737653008787,0.315374,104850.0,104840.0,0.0001423]
[1737653008995,0.71782454,104850.0,104840.0,0.0002918]
[1737653009199,1.57292454,104850.0,104840.0,0.0002918]
[1737653009406,1.82707508,104850.0,104840.0,0.0002918]
[1737653009622,1.67027183,104850.0,104840.0,0.0002918]
[1737653009828,1.57292454,104850.0,104840.0,0.0002918]
[1737653010066,1.52292454,104850.0,104840.0,0.0002918]
[1737653010275,1.57292454,104850.0,104840.0,0.0002918]
[1737653010476,1.54292454,104850.0,104840.0,0.0002918]
[1737653010654,1.59292454,104850.0,104840.0,0.0002918]
[1737653010856,1.59492454,104850.0,104840.0,0.0002918]
[1737653011154,1.69227183,104850.0,104840.0,0.0012918]
[1737653011408,1.70188555,104850.0,104840.0,0.0002918]
[1737653011763,1.70788555,104850.0,104840.0,0.0002918]
[1737653012365,1.27272129,104850.0,104840.0,0.0002918]
[1737653012580,1.42952454,104850.0,104840.0,0.0002918]
[1737653012782,1.27272129,104850.0,104840.0,0.0002918]
[1737653013425,1.27072129,104850.0,104840.0,0.0002918]
[1737653013722,1.26572129,104850.0,104840.0,0.0002918]
[1737653014099,1.13085004,104850.0,104840.0,0.0956748]
[1737653014307,1.28502129,104850.0,104840.0,0.0002918]
[1737653014654,1.44982454,104850.0,104840.0,0.0002918]
[1737653014804,1.54717183,104850.0,104840.0,0.0002918]
[1737653015006,1.28899458,104850.0,104840.0,0.0956748]
[1737653015209,1.04364729,104850.0,104840.0,0.0956748]
[1737653015411,1.04364729,104850.0,104840.0,0.0002918]
[1737653015412,1.13902129,104850.0,104840.0,0.0002918]
[1737653015576,1.04364729,104850.0,104840.0,0.0956748]
[1737653015778,1.04705004,104850.0,104840.0,0.0956748]
[1737653015984,1.04164729,104850.0,104840.0,0.0956748]
[1737653016172,1.04264729,104850.0,104840.0,0.0956748]
[1737653016424,1.04805004,104850.0,104840.0,0.0956748]
[1737653016634,0.95070275,104850.0,104840.0,0.0956748]
[1737653016844,0.94870275,104850.0,104840.0,0.0956748]
[1737653017086,0.95370275,104850.0,104840.0,0.0956748]
[1737653017691,0.95670275,104850.0,104840.0,0.0956748]
[1737653018951,0.95570275,104850.0,104840.0,0.0956748]
[1737653019289,0.95670275,104850.0,104840.0,0.0956748]
[1737653020391,0.08160275,104850.0,104840.0,0.0956748]
[1737653020870,0.08160275,104850.0,104840.0,0.45123934]
[1737653020871,3.8e-07,104850.0,104840.0,0.45123934]
[1737653021075,0.67942925,104910.0,104900.0,0.095328]
[1737653021076,0.4531,104910.0,104900.0,0.095328]
[1737653021300,0.43255004,104910.0,104900.0,0.095328]
[1737653021516,0.3298,104910.0,104900.0,0.095328]
[1737653021725,0.33520275,104910.0,104900.0,0.095328]
[1737653022754,0.33535194,104910.0,104900.0,0.095328]
[1737653023009,0.42729648,104910.0,104900.0,0.095328]
[1737653023237,0.42829648,104910.0,104900.0,0.095328]
[1737653023477,0.52361548,104910.0,104900.0,0.095328]
[1737653023745,0.42829648,104910.0,104900.0,0.095328]
[1737653023996,0.43329648,104910.0,104900.0,0.096328]
[1737653024239,0.42829648,104910.0,104900.0,0.095328]
[1737653024941,0.00540275,104900.0,104890.0,0.285993]
[1737653025553,0.00540275,104890.0,104880.0,0.09534]
[1737653025768,0.47868729,104900.0,104880.0,0.09534]
[1737653025965,0.61556705,104900.0,104880.0,0.286031]
[1737653026118,0.42489405,104900.0,104890.0,0.001]
[1737653026363,0.45055029,104900.0,104890.0,0.001]
[1737653026822,0.00540275,104880.0,104870.0,0.286049]
[1737653027800,0.00540275,104890.0,104880.0,0.095347]
[1737653027986,0.00540275,104890.0,104880.0,0.190678]
[1737653028251,0.0672,104900.0,104890.0,0.095337]
[1737653028473,0.07260275,104900.0,104890.0,0.095337]
[1737653028700,0.07260275,104900.0,104890.0,0.096337]
[1737653029618,0.30966248,104900.0,104890.0,0.001]
[1737653029860,0.48946573,104900.0,104890.0,0.001]
[1737653030094,0.78506573,104900.0,104890.0,0.001]
[1737653030300,0.83506573,104900.0,104890.0,0.001]
[1737653030511,0.76786573,104900.0,104890.0,0.001]
[1737653031060,0.49127529,104900.0,104890.0,0.001]
[1737653031264,0.49127529,104900.0,104890.0,0.002]
[1737653031482,0.14564729,104900.0,104890.0,0.095337]
[1737653031684,0.09834729,104900.0,104890.0,0.095337]
[1737653031882,0.17195004,104900.0,104890.0,0.095337]
[1737653032295,0.07460275,104900.0,104890.0,0.095337]
[1737653033071,0.07260275,104900.0,104890.0,0.095337]
[1737653033317,0.16995004,104900.0,104890.0,0.095337]
[1737653033521,0.00540275,104890.0,104880.0,0.286021]
[1737653033892,0.19268429,104890.0,104880.0,0.286021]
[1737653034098,0.09734729,104890.0,104880.0,0.286021]
[1737653034496,0.00540275,104890.0,104880.0,0.288028]
[1737653035139,0.19268429,104890.0,104880.0,0.002]
[1737653035322,0.10275004,104890.0,104880.0,0.098347]
[1737653035989,0.09734729,104890.0,104880.0,0.003]
[1737653036214,0.37831809,104890.0,104880.0,0.003]
[1737653036449,0.22151484,104890.0,104880.0,0.003]
[1737653037306,0.22151484,104890.0,104880.0,0.001]
[1737653037509,0.095347,104880.0,104870.0,0.095355]
[1737653037727,0.00540275,104860.0,104850.0,0.2862475]
[1737653037953,0.19271229,104860.0,104850.0,0.0955105]
[1737653038374,0.09734729,104860.0,104850.0,0.0955105]
[1737653038832,0.10275004,104860.0,104850.0,0.0955105]
[1737653039047,0.09734729,104860.0,104850.0,0.09566]
[1737653039645,0.09834729,104860.0,104850.0,0.09566]
[1737653039871,0.19371229,104860.0,104850.0,0.095666]
[1737653040100,0.09834729,104860.0,104850.0,0.095666]
[1737653040361,0.09834729,104860.0,104850.0,0.000292]
[1737653040549,0.46967847,104860.0,104850.0,0.000292]
[1737653040749,0.81947847,104860.0,104850.0,0.000292]
[1737653041938,0.47914729,104860.0,104850.0,0.095666]
[1737653042346,0.57451229,104860.0,104850.0,0.000292]
[1737653042526,0.52451229,104860.0,104850.0,0.000292]
[1737653043382,0.42914729,104860.0,104850.0,0.095666]
[1737653043597,0.43455004,104860.0,104850.0,0.095666]
[1737653043802,0.52991504,104860.0,104850.0,0.000292]
[1737653044007,0.54008408,104860.0,104850.0,0.000292]
[1737653044228,0.52991504,104860.0,104850.0,0.000292]
[1737653044433,0.52791504,104860.0,104850.0,0.095666]
[1737653044636,0.52791504,104860.0,104850.0,0.096666]
[1737653044785,0.52791504,104860.0,104850.0,0.098666]
[1737653044995,0.43284929,104860.0,104850.0,0.098666]
[1737653045163,0.43284929,104860.0,104850.0,0.097666]
[1737653045365,0.4544444,104860.0,104850.0,0.097666]
[1737653045564,0.4544444,104860.0,104850.0,0.098666]
[1737653045771,0.43284929,104860.0,104850.0,0.098666]
[1737653048459,0.33009925,104860.0,104850.0,0.098666]
[1737653049349,0.00029925,104860.0,104850.0,0.248666]
[1737653049763,0.00029925,104860.0,104850.0,0.24714788]
[1737653050415,0.10304929,104860.0,104850.0,0.09714788]
[1737653051643,0.09764654,104860.0,104850.0,0.09714788]
[1737653051865,0.00029925,104860.0,104850.0,0.09714788]
[1737653052385,0.005702,104860.0,104850.0,0.09714788]
[1737653053081,0.00029925,104860.0,104850.0,0.09714788]
[1737653053456,0.00029925,104860.0,104850.0,0.24714788]
[1737653054252,0.005702,104860.0,104850.0,0.24714788]
[1737653054687,0.00029925,104860.0,104850.0,0.24714788]
[1737653055842,0.005702,104860.0,104850.0,0.24714788]
[1737653056050,0.00029925,104860.0,104850.0,0.24714788]
[1737653057127,2.5e-07,104860.0,104850.0,0.44477748]
[1737653057335,2.5e-07,104860.0,104850.0,0.47438356]
[1737653057752,2.5e-07,104860.0,104850.0,0.45978631]
[1737653057955,2.5e-07,104860.0,104850.0,0.45992881]
[1737653058374,2.5e-07,104860.0,104850.0,0.45892881]
[1737653058584,2.5e-07,104860.0,104850.0,0.45692881]
[1737653058790,2.5e-07,104860.0,104850.0,0.45892881]
[1737653059263,0.00029925,104900.0,104860.0,0.0808]
[1737653059521,0.00029925,104900.0,104890.0,0.095337]
[1737653059762,0.09764654,104900.0,104890.0,0.113417]
[1737653060025,0.09734729,104900.0,104890.0,0.0223148]
[1737653060267,0.19267529,104900.0,104890.0,0.1176518]
[1737653060715,0.09734729,104900.0,104890.0,0.0223148]
[1737653060941,0.09749648,104900.0,104890.0,0.1176518]
[1737653061804,0.32729973,104900.0,104890.0,0.0042348]
[1737653062021,0.26582448,104900.0,104890.0,0.0042348]
[1737653062243,0.36317177,104900.0,104890.0,0.0042348]
[1737653062449,0.38317177,104900.0,104890.0,0.0042348]
[1737653062658,0.38317177,104900.0,104890.0,0.0052348]
[1737653062861,0.28582448,104900.0,104890.0,0.0052348]
[1737653063069,0.41302448,104900.0,104890.0,0.0052348]
[1737653063514,0.56302448,104900.0,104890.0,0.0052348]
[1737653063728,0.66982773,104900.0,104890.0,0.0052348]
[1737653063942,0.64982773,104900.0,104890.0,0.001]
[1737653064153,0.64982773,104900.0,104890.0,0.0052995]
[1737653064399,0.74717502,104900.0,104890.0,0.0052995]
[1737653064633,0.65082773,104900.0,104890.0,0.0052995]
[1737653065162,0.49402448,104900.0,104890.0,0.0052995]
[1737653065783,0.32102448,104900.0,104890.0,0.0042995]
[1737653065989,0.22769648,104900.0,104890.0,0.0996365]
[1737653066599,0.32302448,104900.0,104890.0,0.0996365]
[1737653067049,0.22769648,104900.0,104890.0,0.0996365]
[1737653068996,0.22783898,104900.0,104890.0,0.0996365]
[1737653072327,0.32316698,104900.0,104890.0,0.0042995]
[1737653072561,0.24346698,104900.0,104890.0,0.0996365]
[1737653072712,0.14813898,104900.0,104890.0,0.0996365]
[1737653073519,0.72214936,104900.0,104890.0,0.0042995]
[1737653073727,0.09535,104880.0,104860.0,0.286078]
[1737653073928,0.00540275,104860.0,104850.0,0.2862445]
[1737653074130,0.09734729,104860.0,104850.0,0.2862445]
[1737653074698,0.10275004,104860.0,104850.0,0.2862445]
[1737653074906,0.00540275,104860.0,104850.0,0.2862445]
[1737653075313,0.00540275,104870.0,104860.0,0.095365]
[1737653075945,0.00540275,104870.0,104860.0,0.096365]
[1737653076486,0.00540275,104870.0,104860.0,0.095365]
[1737653076702,0.00540275,104870.0,104860.0,0.096365]
[1737653077172,0.00540275,104870.0,104860.0,0.098365]
[1737653077723,0.09734729,104870.0,104860.0,0.098365]
[1737653078187,0.19270329,104870.0,104860.0,0.098365]
[1737653078396,0.26340329,104870.0,104860.0,0.098365]
[1737653079901,0.75000654,104870.0,104860.0,0.003]
[1737653080126,0.77000654,104870.0,104860.0,0.003]
[1737653080592,0.59320329,104870.0,104860.0,0.003]
[1737653081254,0.59320329,104870.0,104860.0,0.00329904]
[1737653081756,0.59320329,104870.0,104860.0,0.00229904]
[1737653081999,0.59420329,104870.0,104860.0,0.00029904]
[1737653082471,0.59620329,104870.0,104860.0,0.00029904]
[1737653083500,0.61620329,104870.0,104860.0,0.00029904]
[1737653084074,0.59620329,104870.0,104860.0,0.00029904]
[1737653084287,0.43014729,104870.0,104860.0,0.09566404]
[1737653084507,0.4,104870.0,104860.0,0.09566404]
[1737653084712,0.4,104870.0,104860.0,0.24566404]
[1737653084919,0.003,104870.0,104860.0,0.24566404]
[1737653085132,0.003,104870.0,104860.0,0.24966383]
[1737653085345,0.00554525,104900.0,104870.0,0.1966]
[1737653085546,0.0102425,104900.0,104890.0,0.245337]
[1737653085755,0.0102425,104900.0,104890.0,0.263337]
[1737653085965,0.0001425,104900.0,104890.0,0.36068429]
[1737653086176,0.0001425,104900.0,104890.0,0.40919112]
[1737653086379,5e-07,104900.0,104890.0,0.45919112]
[1737653086591,5e-07,104900.0,104890.0,0.46122829]
[1737653087279,0.0001424,104920.0,104910.0,0.25991625]
[1737653087480,0.00029187,104920.0,104910.0,0.3869036]
[1737653087700,0.00029187,104920.0,104910.0,0.39110806]
[1737653087916,0.00029187,104920.0,104910.0,0.3869036]
[1737653088117,0.00029187,104920.0,104910.0,0.37230635]
[1737653088548,0.00029187,104920.0,104910.0,0.34266629]
[1737653088754,0.00029187,104920.0,104910.0,0.35926354]
[1737653089269,0.00029187,104920.0,104910.0,0.36026354]
[1737653089470,0.00029187,104920.0,104910.0,0.38982246]
[1737653089683,0.00029187,104920.0,104910.0,0.36026354]
[1737653090127,0.00029187,104920.0,104910.0,0.248319]
[1737653090334,0.00029187,104920.0,104910.0,0.098319]
[1737653090335,0.01579462,104920.0,104910.0,0.098319]
[1737653090547,0.01039187,104920.0,104910.0,0.098319]
[1737653090752,0.01039187,104920.0,104910.0,0.10430489]
[1737653091612,0.01579462,104920.0,104910.0,0.10330489]
[1737653091814,0.01579462,104920.0,104910.0,0.10753979]
[1737653092016,0.01579462,104920.0,104910.0,0.10853979]
[1737653092272,0.01579462,104920.0,104910.0,0.11053979]
[1737653092483,0.01579462,104920.0,104910.0,0.10753979]
[1737653092686,0.01579462,104920.0,104910.0,0.11053979]
[1737653097360,0.01039187,104920.0,104910.0,0.35788708]
[1737653097565,0.00029946,104930.0,104920.0,0.32241]
[1737653097566,4.6e-07,104930.0,104920.0,0.32241]
[1737653097710,0.00049858,104930.0,104920.0,0.43435454]
[1737653097911,0.00049858,104930.0,104920.0,0.46384635]